bitfinex/quotes_BTCUSD_20240701
["timestamp","ask_amount","ask_price","bid_price","bid_amount"]
[1719852012840,0.028,63287.0,63286.0,0.00728646]
[1719852013674,0.32017857,63287.0,63286.0,0.00728646]
[1719852013878,0.21102421,63287.0,63286.0,0.00728646]
[1719852014346,0.19033898,63287.0,63286.0,0.00728646]
[1719852014551,0.19033898,63287.0,63286.0,0.14639019]
[1719852014769,0.028,63287.0,63286.0,0.26809924]
[1719852015226,0.19033898,63287.0,63286.0,0.00728646]
[1719852015434,0.29742482,63287.0,63286.0,0.00728646]
[1719852015665,0.17633898,63287.0,63286.0,0.00670146]
[1719852016120,0.16233898,63287.0,63286.0,0.00670146]
[1719852016335,0.16233898,63287.0,63286.0,0.00443083]
[1719852016539,0.18933898,63287.0,63286.0,0.00443083]
[1719852017447,0.18933898,63287.0,63286.0,0.00400912]
[1719852017674,0.18933898,63287.0,63286.0,0.14311285]
[1719852017875,0.027,63287.0,63286.0,0.1527219]
[1719852018326,0.027,63287.0,63286.0,0.4193219]
[1719852020373,0.027,63287.0,63286.0,0.6073339]
[1719852020791,0.027,63287.0,63286.0,0.5773339]
[1719852021788,0.027,63287.0,63286.0,0.4193219]
[1719852024552,0.13398584,63287.0,63286.0,0.27060912]
[1719852024771,0.13398584,63287.0,63286.0,0.00400912]
[1719852025686,0.13398584,63287.0,63286.0,0.00371465]
[1719852026290,0.18933898,63287.0,63286.0,0.00371465]
[1719852026502,0.21002421,63287.0,63286.0,0.00371465]
[1719852026725,0.18933898,63287.0,63286.0,0.00371465]
[1719852027356,0.21002421,63287.0,63286.0,0.00371465]
[1719852027611,0.18933898,63287.0,63286.0,0.00371465]
[1719852027818,0.21002421,63287.0,63286.0,0.00371465]
[1719852028016,1.04192048,63287.0,63286.0,0.00371465]
[1719852028210,1.08559081,63287.0,63286.0,0.00371465]
[1719852028788,0.92469454,63287.0,63286.0,0.00371465]
[1719852028995,0.84733898,63287.0,63286.0,0.00371465]
[1719852029215,0.88202421,63287.0,63286.0,0.00371465]
[1719852029626,0.83333898,63287.0,63286.0,0.00371465]
[1719852029833,0.75732421,63287.0,63286.0,0.00371465]
[1719852030040,0.29033898,63287.0,63286.0,0.00371465]
[1719852030259,0.19033898,63287.0,63286.0,0.14281838]
[1719852030477,0.17633898,63287.0,63286.0,0.00371465]
[1719852031343,0.16233898,63287.0,63286.0,0.00371465]
[1719852031762,0.18755778,63287.0,63286.0,0.14281838]
[1719852031966,0.18755778,63287.0,63286.0,0.15242743]
[1719852032283,0.17355778,63287.0,63286.0,0.15242743]
[1719852032619,0.18755778,63287.0,63286.0,0.14281838]
[1719852032885,0.20155778,63287.0,63286.0,0.14281838]
[1719852033187,0.18755778,63287.0,63286.0,0.15242743]
[1719852033623,0.20055778,63287.0,63286.0,0.15242743]
[1719852035129,0.20055778,63287.0,63286.0,0.00371465]
[1719852035537,0.20055778,63287.0,63286.0,0.0034198]
[1719852036464,0.32696792,63287.0,63286.0,0.0034198]
[1719852036679,0.34996792,63287.0,63286.0,0.0034198]
[1719852036901,0.22355778,63287.0,63286.0,0.0034198]
[1719852037268,0.24424301,63287.0,63286.0,0.0034198]
[1719852038112,0.22355778,63287.0,63286.0,0.0034198]
[1719852039572,0.20055778,63287.0,63286.0,0.14252353]
[1719852039771,0.20055778,63287.0,63286.0,0.0034198]
[1719852040685,0.32696792,63287.0,63286.0,0.0034198]
[1719852041954,0.32780792,63287.0,63286.0,0.0034198]
[1719852042168,0.20139778,63287.0,63286.0,0.0034198]
[1719852043637,0.22208301,63287.0,63286.0,0.0034198]
[1719852043774,0.20139778,63287.0,63286.0,0.0034198]
[1719852044898,0.22208301,63287.0,63286.0,0.0034198]
[1719852045100,0.20139778,63287.0,63286.0,0.0034198]
[1719852045540,0.20139778,63287.0,63286.0,0.00312533]
[1719852045885,0.32789192,63287.0,63286.0,0.00312533]
[1719852046865,0.20139778,63287.0,63286.0,0.00312533]
[1719852047649,0.38488301,63287.0,63286.0,0.00312533]
[1719852051204,0.36419778,63287.0,63286.0,0.00312533]
[1719852051785,0.38488301,63287.0,63286.0,0.00312533]
[1719852055730,0.38488301,63287.0,63286.0,0.00283033]
[1719852056352,0.22439778,63287.0,63286.0,0.00283033]
[1719852056509,0.20139778,63287.0,63286.0,0.00283033]
[1719852057655,0.20505254,63287.0,63286.0,0.00283033]
[1719852058669,0.20505254,63287.0,63286.0,0.25153406]
[1719852060447,0.20505254,63287.0,63286.0,0.11243033]
[1719852060618,0.33191216,63287.0,63286.0,0.00283033]
[1719852061041,0.20505254,63287.0,63286.0,0.00283033]
[1719852064538,0.20505254,63287.0,63286.0,0.14193406]
[1719852065121,0.04271356,63287.0,63286.0,0.29064311]
[1719852065331,0.04271356,63287.0,63286.0,0.40324311]
[1719852065916,0.02971356,63287.0,63286.0,0.40324311]
[1719852066122,0.01484,63287.0,63286.0,0.40324311]
[1719852066536,0.00084,63287.0,63286.0,0.40324311]
[1719852066746,0.01384,63287.0,63286.0,0.40324311]
[1719852066918,0.01384,63287.0,63286.0,0.11543033]
[1719852066919,0.13220984,63287.0,63286.0,0.11543033]
[1719852067059,0.02971349,63287.0,63286.0,0.11543033]
[1719852067262,0.01571349,63287.0,63286.0,0.11643033]
[1719852067673,0.01571349,63287.0,63286.0,0.26714311]
[1719852068198,0.01571349,63287.0,63286.0,0.26514311]
[1719852068578,0.01971349,63287.0,63286.0,0.42315511]
[1719852068778,0.00484,63287.0,63286.0,0.96812315]
[1719852069116,0.00484,63287.0,63286.0,0.96712315]
[1719852069456,0.00494958,63287.0,63286.0,1.62917315]
[1719852069880,0.00094958,63287.0,63286.0,1.62917315]
[1719852070080,0.00294958,63287.0,63286.0,1.62917315]
[1719852070286,0.00694958,63287.0,63286.0,1.62917315]
[1719852070491,0.00494958,63287.0,63286.0,1.62917315]
[1719852070649,0.00094958,63287.0,63286.0,1.63217315]
[1719852071102,0.00094958,63287.0,63286.0,1.79651213]
[1719852071663,0.00094958,63287.0,63286.0,1.79451213]
[1719852072327,0.00094958,63287.0,63286.0,1.79151213]
[1719852072734,0.00194958,63287.0,63286.0,1.79351213]
[1719852072958,0.00294958,63287.0,63286.0,1.79551213]
[1719852075350,0.00294958,63287.0,63286.0,1.97991213]
[1719852075595,0.00294958,63287.0,63286.0,2.27961713]
[1719852075795,0.4747,63309.0,63308.0,0.14871278]
[1719852076061,0.4747,63309.0,63307.0,0.1197]
[1719852076062,0.16233898,63309.0,63307.0,0.1197]
[1719852076279,0.16233898,63308.0,63304.0,0.13910373]
[1719852076813,0.16233898,63308.0,63305.0,0.13910373]
[1719852077030,0.16233898,63308.0,63303.0,0.1216]
[1719852077219,0.16233898,63308.0,63302.0,0.13910373]
[1719852078095,0.02068523,63306.0,63302.0,0.13910373]
[1719852078348,0.27273898,63305.0,63302.0,0.13910373]
[1719852078515,0.27273898,63305.0,63300.0,0.00960905]
[1719852078516,0.27273898,63305.0,63300.0,0.13899834]
[1719852078760,0.28476826,63305.0,63298.0,0.13899834]
[1719852079074,0.28476826,63305.0,63300.0,0.13899834]
[1719852079293,0.28476826,63305.0,63302.0,0.13899834]
[1719852079494,0.28476826,63305.0,63300.0,0.13899834]
[1719852080166,0.29676826,63305.0,63300.0,0.13899834]
[1719852080377,0.28476826,63305.0,63300.0,0.13899834]
[1719852080794,0.29676826,63305.0,63300.0,0.13899834]
[1719852081015,0.28476826,63305.0,63302.0,0.13899834]
[1719852081221,0.29876826,63305.0,63302.0,0.13899834]
[1719852081920,0.29876826,63305.0,63302.0,0.1388923]
[1719852082177,0.28476826,63305.0,63303.0,0.1388923]
[1719852082409,0.01202928,63305.0,63304.0,0.14850135]
[1719852082628,0.0157,63310.0,63305.0,0.1388923]
[1719852082835,0.0157,63310.0,63304.0,0.1388923]
[1719852082836,0.01207422,63305.0,63304.0,0.1388923]
[1719852083039,0.16233898,63309.0,63305.0,0.1388923]
[1719852084561,0.16233898,63309.0,63307.0,0.1388923]
[1719852084860,0.17633898,63309.0,63307.0,0.1388923]
[1719852085056,0.19033898,63309.0,63307.0,0.1388923]
[1719852085299,0.19033898,63309.0,63308.0,0.14850135]
[1719852085718,0.17633898,63309.0,63308.0,0.13859745]
[1719852086134,0.17633898,63309.0,63308.0,0.13889173]
[1719852086604,0.16233898,63309.0,63308.0,0.13889173]
[1719852086785,0.17633898,63309.0,63308.0,0.1482065]
[1719852086983,0.17633898,63309.0,63308.0,0.13889173]
[1719852087158,0.16233898,63309.0,63308.0,0.13889173]
[1719852087359,0.16233898,63309.0,63308.0,0.13878236]
[1719852087564,0.17633898,63309.0,63308.0,0.13848808]
[1719852087779,0.19033898,63309.0,63305.0,0.13848808]
[1719852088002,0.19033898,63309.0,63308.0,0.13848808]
[1719852088206,0.17633898,63309.0,63308.0,0.14809713]
[1719852088619,0.19033898,63309.0,63308.0,0.14809713]
[1719852090360,0.17633898,63309.0,63305.0,0.13848808]
[1719852090580,0.19033898,63309.0,63306.0,0.13838387]
[1719852090990,0.17633898,63309.0,63306.0,0.13838387]
[1719852091196,0.19033898,63309.0,63308.0,0.13838387]
[1719852091399,0.17633898,63309.0,63308.0,0.13838387]
[1719852091599,0.16233898,63309.0,63308.0,0.13838387]
[1719852091814,0.17633898,63309.0,63308.0,0.13867815]
[1719852092065,0.17633898,63309.0,63308.0,0.14799292]
[1719852092225,0.17633898,63309.0,63308.0,0.13867815]
[1719852092428,0.17633898,63309.0,63308.0,0.14799292]
[1719852092657,0.17633898,63309.0,63308.0,0.13838387]
[1719852092813,0.19033898,63309.0,63305.0,0.13838387]
[1719852093012,0.19033898,63309.0,63306.0,0.13838387]
[1719852093268,0.19033898,63309.0,63305.0,0.13838387]
[1719852093719,0.01207486,63308.0,63305.0,0.13838387]
[1719852093890,0.17441384,63308.0,63305.0,0.13838387]
[1719852094475,0.17441384,63308.0,63306.0,0.13827557]
[1719852094675,0.17441384,63308.0,63305.0,0.13827557]
[1719852095018,0.17441384,63308.0,63304.0,0.13827557]
[1719852095233,0.17441384,63308.0,63305.0,0.13827557]
[1719852095631,0.20241384,63308.0,63305.0,0.13827557]
[1719852095838,0.20241384,63308.0,63305.0,0.13711268]
[1719852096631,0.20241384,63308.0,63307.0,0.13711268]
[1719852096831,0.20241384,63308.0,63304.0,0.13711268]
[1719852097061,0.18841384,63308.0,63305.0,0.13711268]
[1719852097408,0.20241384,63308.0,63305.0,0.13711268]
[1719852097593,0.18841384,63308.0,63305.0,0.13711268]
[1719852098058,0.20241384,63308.0,63305.0,0.13711268]
[1719852098261,0.18841384,63308.0,63305.0,0.13711268]
[1719852098821,0.17441384,63308.0,63305.0,0.13711268]
[1719852099045,0.18841384,63308.0,63305.0,0.13711268]
[1719852099262,0.20241384,63308.0,63307.0,0.14672173]
[1719852100869,0.17451774,63308.0,63307.0,0.14672173]
[1719852101070,0.18851774,63308.0,63307.0,0.14672173]
[1719852101276,0.04017876,63308.0,63307.0,0.26672173]
[1719852101482,0.04017876,63308.0,63307.0,0.42468173]
[1719852101684,0.04017876,63308.0,63307.0,0.74060173]
[1719852102220,0.01217876,63308.0,63307.0,0.74060173]
[1719852102417,0.02617876,63308.0,63307.0,0.42468173]
[1719852102800,0.03017876,63308.0,63307.0,0.26672173]
[1719852104384,0.03217876,63308.0,63307.0,0.26672173]
[1719852104984,0.03217876,63308.0,63304.0,0.13711268]
[1719852105213,0.03217876,63308.0,63307.0,0.14672173]
[1719852105936,0.1507,63307.0,63305.0,0.13681758]
[1719852106120,0.1507,63307.0,63304.0,0.13681758]
[1719852106327,0.01219367,63306.0,63304.0,0.13681758]
[1719852106447,0.01219367,63306.0,63305.0,0.13681758]
[1719852108925,0.01219367,63306.0,63305.0,0.13781758]
[1719852109132,0.01319367,63306.0,63305.0,0.13781758]
[1719852110180,0.01319367,63306.0,63305.0,0.001]
[1719852110378,0.01219367,63306.0,63305.0,0.001]
[1719852110740,0.01419367,63306.0,63305.0,0.001]
[1719852111340,0.01419367,63306.0,63304.0,0.13681758]
[1719852111341,0.01219367,63306.0,63304.0,0.13681758]
[1719852111537,0.01819367,63306.0,63304.0,0.13681758]
[1719852112167,0.01819367,63306.0,63302.0,0.13774158]
[1719852112388,0.01619367,63306.0,63302.0,0.13774158]
[1719852112631,0.0738,63303.0,63302.0,0.000924]
[1719852112830,0.23613898,63303.0,63302.0,0.000924]
[1719852113042,0.43941847,63303.0,63302.0,0.000924]
[1719852113431,0.38873324,63303.0,63302.0,0.000924]
[1719852114813,0.17453324,63303.0,63302.0,0.000924]
[1719852115218,0.18753324,63303.0,63302.0,0.000924]
[1719852115647,0.20153324,63303.0,63302.0,0.000924]
[1719852116029,0.20163481,63303.0,63302.0,0.000924]
[1719852117353,0.03929583,63303.0,63302.0,0.26575635]
[1719852117560,0.02710157,63303.0,63302.0,0.8166326]
[1719852117767,0.02710157,63303.0,63302.0,1.1925776]
[1719852117960,0.02710157,63303.0,63302.0,1.1325776]
[1719852118164,0.02710157,63303.0,63302.0,1.1925776]
[1719852118577,0.00010157,63303.0,63302.0,1.1925776]
[1719852118828,0.01710157,63303.0,63302.0,1.1925776]
[1719852119282,0.00010157,63303.0,63302.0,1.30239025]
[1719852119489,0.00110157,63303.0,63302.0,1.6582226]
[1719852119683,0.00210157,63303.0,63302.0,1.6582226]
[1719852119983,0.00210157,63303.0,63302.0,1.5844226]
[1719852120675,0.00210157,63303.0,63302.0,1.74676158]
[1719852120868,0.00210157,63303.0,63302.0,2.66270658]
[1719852121325,0.00110157,63303.0,63302.0,2.66270658]
[1719852121567,0.00084,63308.0,63307.0,1.61185235]
[1719852121723,0.00084,63308.0,63307.0,2.21899133]
[1719852122569,0.00084,63308.0,63307.0,1.91899133]
[1719852122973,0.00184,63308.0,63307.0,1.92099133]
[1719852123251,0.00184,63308.0,63307.0,2.22099133]
[1719852123884,0.00184,63308.0,63307.0,1.92099133]
[1719852126003,0.00284,63308.0,63307.0,0.73921235]
[1719852126536,0.00284,63308.0,63307.0,0.73910634]
[1719852127152,0.00284,63308.0,63307.0,0.42318634]
[1719852127556,0.00284,63308.0,63307.0,0.003]
[1719852127754,0.00284,63308.0,63307.0,0.14902634]
[1719852128422,0.14014,63308.0,63307.0,0.002]
[1719852128794,0.15245764,63308.0,63307.0,0.003]
[1719852129014,0.15145764,63308.0,63307.0,0.001]
[1719852129428,0.15245764,63308.0,63305.0,0.13671157]
[1719852129625,0.36548185,63308.0,63302.0,0.000924]
[1719852129950,0.39527761,63308.0,63302.0,0.000924]
[1719852130305,0.05068523,63305.0,63302.0,0.000924]
[1719852130504,0.24168202,63307.0,63302.0,0.000924]
[1719852130505,0.73760733,63304.0,63302.0,0.000924]
[1719852130712,0.74990106,63304.0,63302.0,0.000924]
[1719852131572,0.74990106,63304.0,63302.0,0.13763557]
[1719852131778,0.58756208,63304.0,63302.0,0.13763557]
[1719852131992,0.58756208,63304.0,63303.0,0.14602634]
[1719852132781,0.58756208,63304.0,63303.0,0.13671157]
[1719852133136,0.58756208,63304.0,63302.0,0.000924]
[1719852133341,0.60156208,63304.0,63302.0,0.13763557]
[1719852133569,0.61256208,63304.0,63302.0,0.13763557]
[1719852133796,0.60156208,63304.0,63302.0,0.13763557]
[1719852134215,0.60756208,63304.0,63302.0,0.13763557]
[1719852134363,0.60156208,63304.0,63302.0,0.13763557]
[1719852134734,0.16233898,63303.0,63302.0,0.000924]
[1719852135166,0.22531535,63303.0,63302.0,0.000924]
[1719852135786,0.17463012,63303.0,63302.0,0.00062915]
[1719852136048,0.01229114,63303.0,63302.0,0.13734072]
[1719852136276,0.02429114,63303.0,63302.0,0.13734072]
[1719852136704,0.01229114,63303.0,63302.0,0.13734072]
[1719852137239,0.02029114,63303.0,63302.0,0.13734072]
[1719852138265,0.03429114,63303.0,63302.0,0.13734072]
[1719852138465,0.03429114,63303.0,63302.0,0.14665549]
[1719852138670,0.02029114,63303.0,63302.0,0.26575549]
[1719852139091,0.018,63303.0,63302.0,0.26575549]
[1719852139654,0.018,63303.0,63302.0,0.25644072]
[1719852139896,0.018,63303.0,63302.0,0.13734072]
[1719852140136,0.0774212,63303.0,63302.0,0.13734072]
[1719852140308,0.3463212,63303.0,63302.0,0.13734072]
[1719852140513,0.29911151,63303.0,63302.0,0.13734072]
[1719852140932,0.29911151,63303.0,63302.0,0.00062915]
[1719852141811,0.29911151,63303.0,63302.0,0.13734072]
[1719852142442,0.29911151,63303.0,63302.0,0.14665549]
[1719852142651,0.18131151,63303.0,63302.0,0.14665549]
[1719852143056,0.18131151,63303.0,63302.0,0.13734072]
[1719852143192,0.18131151,63303.0,63302.0,0.14665549]
[1719852143402,0.18131151,63303.0,63302.0,0.13734072]
[1719852144538,0.18131151,63303.0,63302.0,0.00062915]
[1719852144748,0.34365049,63303.0,63302.0,0.00062915]
[1719852144961,0.39433572,63303.0,63302.0,0.00062915]
[1719852145879,0.3437542,63303.0,63302.0,0.0003343]
[1719852146344,0.39443943,63303.0,63302.0,0.0003343]
[1719852146557,0.86202948,63303.0,63302.0,0.0003343]
[1719852146828,1.00542948,63303.0,63302.0,0.0003343]
[1719852148488,0.95474425,63303.0,63302.0,0.0003343]
[1719852148738,1.00542948,63303.0,63302.0,0.0003343]
[1719852151928,0.95474425,63303.0,63302.0,0.0003343]
[1719852152934,1.00542948,63303.0,63302.0,0.0003343]
[1719852153072,0.81134425,63303.0,63302.0,0.0003343]
[1719852153978,0.66024425,63303.0,63302.0,0.0003343]
[1719852154197,0.66024425,63303.0,63302.0,0.13704587]
[1719852154662,0.66024425,63303.0,63302.0,0.14636064]
[1719852154879,0.66024425,63303.0,63302.0,0.13704587]
[1719852155825,0.66024425,63303.0,63302.0,3.93e-05]
[1719852157378,0.72161352,63303.0,63302.0,3.93e-05]
[1719852157723,0.66024425,63303.0,63302.0,3.93e-05]
[1719852160384,0.79027252,63303.0,63302.0,3.93e-05]
[1719852160629,1.24457252,63303.0,63302.0,3.93e-05]
[1719852160827,1.16522948,63303.0,63302.0,3.93e-05]
[1719852161053,1.54457252,63303.0,63302.0,3.93e-05]
[1719852161258,1.97019466,63303.0,63302.0,3.93e-05]
[1719852161483,1.80690623,63303.0,63302.0,3.93e-05]
[1719852161614,1.79890623,63303.0,63302.0,3.93e-05]
[1719852161816,1.81290623,63303.0,63302.0,3.93e-05]
[1719852162098,1.96619466,63303.0,63302.0,3.93e-05]
[1719852162328,1.98019466,63303.0,63302.0,3.93e-05]
[1719852162518,1.81690623,63303.0,63302.0,3.93e-05]
[1719852163168,1.98019466,63303.0,63302.0,3.93e-05]
[1719852165088,1.90085162,63303.0,63302.0,3.93e-05]
[1719852165504,1.73756319,63303.0,63302.0,3.93e-05]
[1719852165933,1.57522948,63303.0,63302.0,3.93e-05]
[1719852167630,1.73851791,63303.0,63302.0,3.93e-05]
[1719852169373,0.05068523,63292.0,63286.0,0.11910705]
[1719852169582,0.57526835,63291.0,63286.0,0.11910705]
[1719852169787,0.57526835,63291.0,63288.0,0.13671157]
[1719852169987,0.01212822,63290.0,63288.0,0.13671157]
[1719852171376,0.01212822,63290.0,63289.0,0.14602634]
[1719852171847,0.01212822,63290.0,63288.0,0.13671157]
[1719852172042,0.01312822,63290.0,63288.0,0.13671157]
[1719852172241,0.01312822,63290.0,63286.0,0.25581862]
[1719852172470,0.01212822,63290.0,63286.0,0.25581862]
[1719852172885,0.01312822,63290.0,63286.0,0.11910705]
[1719852173259,0.01512822,63290.0,63286.0,0.11910705]
[1719852173688,0.1100003,63290.0,63286.0,0.11910705]
[1719852173896,0.1070003,63290.0,63286.0,0.11910705]
[1719852174474,0.01212822,63290.0,63286.0,0.25581862]
[1719852174667,0.01512822,63290.0,63288.0,0.13671157]
[1719852174870,0.01612822,63290.0,63288.0,0.13671157]
[1719852175298,0.01612822,63290.0,63286.0,0.11910705]
[1719852175504,0.16233898,63289.0,63286.0,0.00140705]
[1719852175832,0.2007287,63289.0,63286.0,0.00140705]
[1719852176051,0.01212234,63288.0,63286.0,0.00140705]
[1719852176260,0.16233898,63287.0,63286.0,0.00140705]
[1719852176676,0.17446101,63287.0,63286.0,0.00140705]
[1719852176891,0.57414624,63287.0,63286.0,0.00140705]
[1719852177175,1.44386838,63287.0,63286.0,0.00140705]
[1719852178374,1.45786838,63287.0,63286.0,0.00140705]
[1719852179258,1.44386838,63287.0,63286.0,0.00140705]
[1719852179469,1.45786838,63287.0,63286.0,0.00140705]
[1719852179673,1.47186838,63287.0,63286.0,0.00140705]
[1719852179888,1.45786838,63287.0,63286.0,0.00140705]
[1719852180312,1.47186838,63287.0,63286.0,0.00140705]
[1719852181191,1.45786838,63287.0,63286.0,0.00140705]
[1719852181404,1.47429766,63287.0,63286.0,0.00140705]
[1719852181599,1.46029766,63287.0,63286.0,0.00140705]
[1719852181896,1.47429766,63287.0,63286.0,0.00140705]
[1719852182651,1.48829766,63287.0,63286.0,0.00140705]
[1719852184304,2.17070966,63287.0,63286.0,0.00140705]
[1719852184859,0.71397366,63282.0,63280.0,0.000924]
[1719852185083,2.66368464,63282.0,63280.0,0.000924]
[1719852185306,2.81441112,63282.0,63280.0,0.000924]
[1719852185517,1.77103912,63282.0,63280.0,0.000924]
[1719852186021,1.78503912,63282.0,63280.0,0.000924]
[1719852186231,1.78503912,63282.0,63281.0,1e-08]
[1719852186232,1.96137283,63282.0,63281.0,1e-08]
[1719852186446,1.65107283,63282.0,63281.0,1e-08]
[1719852187074,1.66507283,63282.0,63281.0,1e-08]
[1719852188546,0.51397366,63269.0,63268.0,0.000924]
[1719852188757,2.28367104,63269.0,63268.0,0.000924]
[1719852188964,2.29580569,63269.0,63268.0,0.000924]
[1719852189331,2.13251726,63269.0,63268.0,0.000924]
[1719852189858,2.01261726,63269.0,63268.0,0.000924]
[1719852190247,2.02661726,63269.0,63268.0,0.000924]
[1719852190454,1.58951792,63269.0,63268.0,0.000924]
[1719852190771,1.60351792,63269.0,63268.0,0.000924]
[1719852190981,1.76585163,63269.0,63268.0,0.000924]
[1719852192939,1.60351792,63269.0,63268.0,0.000924]
[1719852194634,2.92005492,63269.0,63268.0,0.000924]
[1719852194842,0.05068523,63257.0,63256.0,0.009251]
[1719852195201,0.588756,63257.0,63256.0,0.009251]
[1719852195363,0.73933044,63257.0,63256.0,0.009251]
[1719852196391,1.38966525,63257.0,63256.0,0.009251]
[1719852196570,1.37008125,63257.0,63256.0,0.009251]
[1719852196767,1.35008125,63257.0,63256.0,0.009251]
[1719852197185,1.36408125,63257.0,63256.0,0.009251]
[1719852197613,1.36578125,63257.0,63256.0,0.009251]
[1719852198422,0.05068523,63256.0,63249.0,0.13945357]
[1719852198626,1.29087117,63255.0,63250.0,0.1192]
[1719852198943,0.1,63254.0,63250.0,0.1192]
[1719852199165,0.18533898,63253.0,63250.0,0.1192]
[1719852199580,0.01198925,63252.0,63250.0,0.1192]
[1719852199774,0.16233898,63251.0,63250.0,0.1192]
[1719852200152,0.1742916,63251.0,63250.0,0.2212]
[1719852200975,0.01195262,63251.0,63250.0,0.2212]
[1719852201210,0.02595262,63251.0,63250.0,0.36722634]
[1719852201806,0.03995262,63251.0,63250.0,0.36722634]
[1719852202596,0.03995262,63251.0,63250.0,0.36815034]
[1719852203869,0.02595262,63251.0,63250.0,0.42815034]
[1719852204042,0.02595262,63251.0,63250.0,0.58625234]
[1719852204245,0.03895262,63251.0,63250.0,0.58625234]
[1719852204961,0.02495262,63251.0,63250.0,0.58625234]
[1719852205187,0.02495262,63251.0,63250.0,0.52625234]
[1719852205188,0.01195262,63251.0,63250.0,0.52625234]
[1719852205408,0.01405379,63251.0,63250.0,0.36915034]
[1719852205618,0.00210117,63251.0,63250.0,0.36915034]
[1719852205795,0.013052,63251.0,63250.0,0.36815034]
[1719852206002,0.00110117,63251.0,63250.0,0.36815034]
[1719852206202,0.01304913,63251.0,63250.0,0.36815034]
[1719852206407,0.00110117,63251.0,63250.0,0.36815034]
[1719852206631,0.01304913,63251.0,63250.0,0.36815034]
[1719852206781,0.00110117,63251.0,63250.0,0.36815034]
[1719852206994,0.01204913,63251.0,63250.0,0.36815034]
[1719852207207,0.00210117,63251.0,63250.0,0.36815034]
[1719852207401,0.01404913,63251.0,63250.0,0.36815034]
[1719852207674,0.00210117,63251.0,63250.0,0.36815034]
[1719852207891,0.01504819,63251.0,63250.0,0.36815034]
[1719852208100,0.00710117,63251.0,63250.0,0.36815034]
[1719852208538,0.01904913,63251.0,63250.0,0.36815034]
[1719852210574,0.05950247,63251.0,63250.0,0.36815034]
[1719852210787,0.05250247,63251.0,63250.0,0.36815034]
[1719852211201,0.05450247,63251.0,63250.0,0.36815034]
[1719852211633,0.01404913,63251.0,63250.0,0.36815034]
[1719852211839,0.01204913,63251.0,63250.0,0.36815034]
[1719852212057,0.01604913,63251.0,63250.0,0.36815034]
[1719852212268,0.01904913,63251.0,63250.0,0.36815034]
[1719852213489,0.01504913,63251.0,63250.0,0.36815034]
[1719852213891,0.01404913,63251.0,63250.0,0.36815034]
[1719852215270,0.01404913,63251.0,63250.0,0.52625234]
[1719852215430,0.01404913,63251.0,63250.0,0.36815034]
[1719852218347,0.01404913,63251.0,63250.0,0.14695034]
[1719852218538,0.07298088,63251.0,63250.0,0.14695034]
[1719852218760,0.07298088,63251.0,63250.0,0.000924]
[1719852219254,0.07298088,63251.0,63250.0,0.14695034]
[1719852220035,0.07298088,63251.0,63250.0,0.000924]
[1719852220238,0.41971986,63251.0,63250.0,0.000924]
[1719852220438,0.54051986,63251.0,63250.0,0.000924]
[1719852220699,0.59120509,63251.0,63250.0,0.000924]
[1719852220891,0.54051986,63251.0,63250.0,0.000924]
[1719852221037,0.58920509,63251.0,63250.0,0.000924]
[1719852221252,0.55051986,63251.0,63250.0,0.000924]
[1719852221456,0.56351986,63251.0,63250.0,0.000924]
[1719852223973,1.13760509,63251.0,63250.0,0.000924]
[1719852225214,1.27589352,63251.0,63250.0,0.000924]
[1719852225418,1.28989352,63251.0,63250.0,0.000924]
[1719852226149,1.30389352,63251.0,63250.0,0.000924]
[1719852226980,1.99781652,63251.0,63250.0,0.000924]
[1719852227179,1.95981652,63251.0,63250.0,0.000924]
[1719852227387,1.79652809,63251.0,63250.0,0.000924]
[1719852227591,1.95981652,63251.0,63250.0,0.000924]
[1719852228191,1.94581652,63251.0,63250.0,0.000924]
[1719852228394,1.93181652,63251.0,63250.0,0.000924]
[1719852228598,1.95981652,63251.0,63250.0,0.000924]
[1719852228808,2.00548084,63251.0,63250.0,0.000924]
[1719852230283,1.99148084,63251.0,63250.0,0.000924]
[1719852230497,2.00548084,63251.0,63250.0,0.000924]
[1719852230709,2.03758281,63251.0,63250.0,0.000924]
[1719852231136,2.05158281,63251.0,63250.0,0.000924]
[1719852231358,1.88829438,63251.0,63250.0,0.000924]
[1719852231614,1.36088806,63251.0,63250.0,0.000924]
[1719852231826,1.31478609,63251.0,63250.0,0.000924]
[1719852232483,1.47807452,63251.0,63250.0,0.000924]
[1719852232863,1.31478609,63251.0,63250.0,0.000924]
[1719852233275,1.47807452,63251.0,63250.0,0.000924]
[1719852234580,1.80307652,63251.0,63250.0,0.000924]
[1719852235088,1.80391652,63251.0,63250.0,0.000924]
[1719852235304,1.39952809,63251.0,63250.0,0.000924]
[1719852235596,0.76614706,63251.0,63250.0,0.000924]
[1719852235806,0.72004509,63251.0,63250.0,0.000924]
[1719852236999,0.74304509,63251.0,63250.0,0.000924]
[1719852238358,1.04304509,63251.0,63250.0,0.000924]
[1719852238937,1.20633352,63251.0,63250.0,0.000924]
[1719852239168,1.63248852,63251.0,63250.0,0.000924]
[1719852239578,0.38515986,63251.0,63250.0,0.000924]
[1719852239782,0.43584509,63251.0,63250.0,0.000924]
[1719852241836,0.44218109,63251.0,63250.0,0.000924]
[1719852242049,0.95668109,63251.0,63250.0,0.000924]
[1719852242499,0.65668109,63251.0,63250.0,0.000924]
[1719852243667,1.37583652,63251.0,63250.0,0.000924]
[1719852244081,1.47088652,63251.0,63250.0,0.000924]
[1719852244281,1.67088652,63251.0,63250.0,0.000924]
[1719852244912,1.65688652,63251.0,63250.0,0.000924]
[1719852245084,1.74899343,63251.0,63250.0,0.000924]
[1719852246257,0.93797366,63250.0,63249.0,0.002742]
[1719852246451,3.22225935,63250.0,63249.0,0.002742]
[1719852246652,2.85238237,63250.0,63249.0,0.002742]
[1719852246891,2.87005331,63250.0,63249.0,0.002742]
[1719852247982,1.46909231,63250.0,63249.0,0.002742]
[1719852248184,3.22974631,63250.0,63249.0,0.002742]
[1719852248942,0.51397366,63246.0,63245.0,0.000924]
[1719852249144,1.73835215,63246.0,63245.0,0.000924]
[1719852249386,1.83415215,63246.0,63245.0,0.000924]
[1719852249996,1.97530412,63246.0,63245.0,0.000924]
[1719852250565,2.03530906,63246.0,63245.0,0.000924]
[1719852251032,2.04930906,63246.0,63245.0,0.000924]
[1719852251463,2.03530906,63246.0,63245.0,0.000924]
[1719852251620,2.02130906,63246.0,63245.0,0.000924]
[1719852251831,2.03530906,63246.0,63245.0,0.000924]
[1719852252044,2.04930906,63246.0,63245.0,0.000924]
[1719852252244,1.57987063,63246.0,63245.0,0.000924]
[1719852252471,1.48776372,63246.0,63245.0,0.000924]
[1719852252676,1.65105215,63246.0,63245.0,0.000924]
[1719852253488,1.48776372,63246.0,63245.0,0.000924]
[1719852253683,1.65105215,63246.0,63245.0,0.000924]
[1719852254699,1.48776372,63246.0,63245.0,0.000924]
[1719852255122,1.65105215,63246.0,63245.0,0.000924]
[1719852255911,1.48776372,63246.0,63245.0,0.000924]